bitfinex-derivatives/quotes_ETHF0:USTF0_20251009
["timestamp","ask_amount","ask_price","bid_price","bid_amount"]
[1759968499873,3.95535563,4520.4,4520.3,0.3357]
[1759968500164,3.95535563,4520.4,4520.3,0.5424]
[1759968501368,6.84153923,4520.4,4520.3,0.5424]
[1759968501673,6.84153923,4520.4,4520.3,0.7691]
[1759968502066,6.84153923,4520.4,4520.3,0.3357]
[1759968502565,6.84153923,4520.4,4519.5,0.1227]
[1759968502767,3.2078,4519.6,4519.3,0.3357]
[1759968503071,3.2078,4519.6,4519.1,0.3357]
[1759968503072,3.95427483,4519.5,4519.1,0.3357]
[1759968503369,0.39816,4519.4,4519.0,0.52089]
[1759968503565,0.222,4519.3,4519.2,0.3357]
[1759968503768,3.03693472,4519.3,4519.2,0.3357]
[1759968504768,3.43510472,4519.3,4519.2,0.3357]
[1759968505072,3.43510472,4519.3,4519.2,0.5424]
[1759968505275,3.43510472,4519.3,4519.2,0.7691]
[1759968505674,3.21310472,4519.3,4519.2,0.7691]
[1759968505969,3.03693472,4519.3,4519.2,0.7691]
[1759968506372,3.03693472,4519.3,4519.2,0.3357]
[1759968507564,3.03693472,4519.3,4519.2,0.5424]
[1759968508181,3.03693472,4519.3,4519.2,0.3357]
[1759968508381,2.81493472,4519.3,4519.2,0.3357]
[1759968508574,3.03693472,4519.3,4519.2,0.3357]
[1759968509475,0.39818,4519.2,4518.7,0.3357]
[1759968509674,0.39822,4518.7,4518.6,0.3357]
[1759968510074,3.2908387,4518.7,4518.6,0.3357]
[1759968510377,3.2908387,4518.7,4518.6,0.5424]
[1759968510874,2.8926187,4518.7,4518.6,0.5424]
[1759968511279,0.39821,4518.8,4518.5,0.52094]
[1759968511280,3.23844474,4518.8,4518.7,0.5424]
[1759968511577,0.39821,4518.8,4518.7,0.5424]
[1759968511770,3.2078,4518.9,4518.8,1.16731]
[1759968512178,6.14017703,4518.9,4518.8,1.16731]
[1759968512979,6.14017703,4518.9,4518.8,6.16731]
[1759968513179,3.2078,4519.6,4519.5,1.28995]
[1759968513579,6.50057078,4519.6,4519.5,1.28995]
[1759968513779,6.10243078,4519.6,4519.5,1.28995]
[1759968514280,6.50057078,4519.6,4519.5,1.28995]
[1759968515884,6.10243078,4519.6,4519.5,1.28995]
[1759968518878,2.89463078,4519.6,4519.5,1.28995]
[1759968519280,3.23307632,4520.0,4519.9,0.83231]
[1759968519481,0.39811,4520.0,4519.9,1.17051]
[1759968519781,3.2078,4520.1,4520.0,1.30381]
[1759968520080,6.10349907,4520.1,4520.0,1.30381]
[1759968520280,6.50159907,4520.1,4520.0,1.30381]
[1759968522083,6.10349907,4520.1,4520.0,1.30381]
[1759968524781,6.10349907,4520.1,4520.0,0.9057]
[1759968524985,6.10349907,4520.1,4520.0,1.30381]
[1759968525280,6.62364739,4520.1,4520.0,1.30381]
[1759968525884,7.02174739,4520.1,4520.0,1.30381]
[1759968528390,6.62364739,4520.1,4520.0,1.30381]
[1759968529692,7.02174739,4520.1,4520.0,1.30381]
[1759968529991,7.02174739,4520.1,4520.0,0.9057]
[1759968532793,7.02174739,4520.1,4520.0,1.30381]
[1759968533092,0.00278729,4520.4,4520.3,1.14298]
[1759968533294,3.2078,4521.2,4521.1,1.14291]
[1759968533489,3.72846614,4521.2,4521.1,0.5369]
[1759968533787,0.39801,4521.1,4521.0,0.4652]
[1759968533996,0.91871353,4521.1,4521.0,0.4652]
[1759968534190,3.84241179,4521.1,4521.0,0.4652]
[1759968534389,0.39805,4520.6,4520.5,0.4652]
[1759968534590,3.95034274,4520.6,4520.0,0.4627]
[1759968534896,3.2078,4520.1,4520.0,0.4627]
[1759968535391,6.06379269,4520.1,4520.0,0.6702]
[1759968535986,6.06379269,4520.1,4520.0,0.8782]
[1759968542891,0.39814,4519.6,4519.5,0.1227]
[1759968543395,3.21029831,4519.6,4519.5,0.72835]
[1759968543590,3.21029831,4519.6,4519.5,1.26575]
[1759968543987,3.21029831,4519.6,4519.5,0.8676]
[1759968544396,6.93933936,4519.6,4519.5,0.4521]
[1759968544986,0.39818,4519.2,4519.1,0.3294]
[1759968545296,0.39818,4519.2,4519.1,0.5369]
[1759968545297,3.23449927,4519.2,4519.1,0.5369]
[1759968545895,3.7611705,4519.2,4519.1,0.5369]
[1759968546300,3.23449927,4519.2,4519.1,0.3294]
[1759968546492,3.23449927,4519.2,4518.8,0.3294]
[1759968546493,0.3982,4518.9,4518.8,0.3294]
[1759968546996,3.21916644,4518.9,4518.8,0.3294]
[1759968547199,3.74570109,4518.9,4518.8,0.3294]
[1759968547394,3.21916644,4518.9,4518.8,0.3294]
[1759968547897,3.21916644,4518.9,4518.8,0.5369]
[1759968550000,3.21916644,4518.9,4518.8,0.93511]
[1759968554708,3.21916644,4518.9,4518.8,1.15341]
[1759968555507,2.82096644,4518.9,4518.8,1.15341]
[1759968557614,3.2078,4519.5,4519.4,0.94896]
[1759968557805,3.2078,4519.5,4519.4,1.16726]
[1759968558113,6.13050163,4519.5,4519.4,1.16726]
[1759968559014,6.52865163,4519.5,4519.4,1.16726]
[1759968559914,6.13050163,4519.5,4519.4,1.16726]
[1759968563320,6.66323268,4519.5,4519.4,1.16726]
[1759968564226,6.66323268,4519.5,4519.4,0.39816]
[1759968564525,6.66323268,4519.5,4519.4,0.73266]
[1759968564928,6.66323268,4519.5,4519.4,0.94896]
[1759968565418,6.66323268,4519.5,4519.4,1.16726]
[1759968565626,6.88523268,4519.5,4519.4,1.16726]
[1759968566015,6.66323268,4519.5,4519.4,1.16726]
[1759968569024,6.66323268,4519.5,4519.4,0.94896]
[1759968573028,6.66323268,4519.5,4519.4,1.16726]
[1759968574229,6.66323268,4519.5,4519.4,0.73266]
[1759968574930,7.06138268,4519.5,4519.4,0.73266]
[1759968576826,6.66323268,4519.5,4519.1,0.3345]
[1759968577032,0.39818,4519.1,4518.9,0.7327]
[1759968577331,6.96696681,4519.0,4518.9,0.7327]
[1759968577823,4.13872105,4519.0,4518.9,0.5508]
[1759968578031,6.96696681,4519.0,4518.9,0.3345]
[1759968579632,7.18896681,4519.0,4518.9,0.3345]
[1759968579930,0.39821,4518.9,4518.8,0.3205]
[1759968580128,0.93094105,4518.9,4518.8,0.3205]
[1759968580327,3.86203988,4518.9,4518.8,0.3205]
[1759968581728,3.86203988,4518.9,4518.8,0.5286]
[1759968582125,3.86203988,4518.9,4518.8,0.92681]
[1759968582529,3.46382988,4518.9,4518.8,0.92681]
[1759968583434,3.86202988,4518.9,4518.8,0.92681]
[1759968585034,3.46382988,4518.9,4518.8,0.92681]
[1759968585937,3.86202988,4518.9,4518.8,0.92681]
[1759968587033,3.86202988,4518.9,4518.8,1.14081]
[1759968587431,7.06982988,4518.9,4518.8,1.14081]
[1759968587625,7.06982988,4518.9,4518.8,0.92681]
[1759968588723,7.06982988,4518.9,4518.8,0.71871]
[1759968588929,7.06982988,4518.9,4518.8,0.3205]
[1759968589634,7.06982988,4518.9,4518.8,0.71871]
[1759968590937,7.06982988,4518.9,4518.8,0.3205]
[1759968591138,7.06982988,4518.9,4518.8,0.71871]
[1759968592942,7.06982988,4518.9,4518.8,0.3205]
[1759968593639,7.06982988,4518.9,4518.8,0.71871]
[1759968599536,6.67162988,4518.9,4518.8,0.92941]
[1759968600147,7.06982988,4518.9,4518.8,0.92941]
[1759968600447,7.07030316,4518.9,4518.8,0.92941]
[1759968600636,7.07030316,4518.9,4518.8,0.3205]
[1759968601041,6.67210316,4518.9,4518.8,0.71871]
[1759968601540,3.46430316,4518.9,4518.8,1.14341]
[1759968601739,3.2078,4519.5,4518.8,1.14341]
[1759968601740,3.2078,4519.5,4519.4,0.39816]
[1759968601944,3.74111527,4519.5,4519.4,1.13666]
[1759968602141,6.55236344,4519.5,4519.4,1.13666]
[1759968602840,6.55236344,4519.5,4519.4,0.3138]
[1759968603042,6.77436344,4519.5,4519.2,0.3138]
[1759968603245,0.53331527,4519.4,4519.2,0.3138]
[1759968603446,0.53331527,4519.3,4519.2,0.3138]
[1759968603749,3.39179769,4519.3,4519.2,0.3138]
[1759968605138,3.61379769,4519.3,4519.0,0.1338]
[1759968605339,0.93149527,4519.2,4519.1,0.3138]
[1759968605749,3.84236743,4519.2,4519.1,0.3138]
[1759968606147,6.65198743,4519.2,4519.1,0.3138]
[1759968606945,6.65198743,4519.2,4519.1,0.5245]
[1759968607953,6.65198743,4519.2,4519.1,0.7385]
[1759968608254,6.11867216,4519.2,4519.1,0.7385]
[1759968610143,6.64641598,4519.2,4519.1,0.7385]
[1759968610354,6.64641598,4519.2,4519.1,0.3138]
[1759968610542,6.86841598,4519.2,4519.1,0.3138]
[1759968614550,0.39818,4519.1,4518.9,0.3982]
[1759968614856,3.65060126,4519.0,4518.9,0.7188]
[1759968615155,3.65060126,4519.0,4518.9,0.3206]
[1759968615342,3.65060126,4519.0,4518.9,0.5353]
[1759968615952,3.65060126,4519.0,4518.9,0.9335]
[1759968616154,4.04879126,4519.0,4518.9,0.9335]
[1759968618356,4.04879126,4519.0,4518.9,0.5353]
[1759968618558,4.04879126,4519.0,4518.9,0.3206]
[1759968619355,4.04879126,4519.0,4518.9,0.5353]
[1759968619757,4.04879126,4519.0,4518.9,0.3206]
[1759968619959,4.04879126,4519.0,4518.9,0.7188]
[1759968620254,4.04879126,4519.0,4518.9,0.9335]
[1759968621157,4.04879126,4519.0,4518.9,1.1386]
[1759968621363,4.04879126,4519.0,4518.9,0.7404]
[1759968622058,4.04879126,4519.0,4518.9,1.1386]
[1759968624352,4.04879126,4519.0,4518.9,0.5353]
[1759968624547,4.04879126,4519.0,4518.9,0.9335]
[1759968624952,4.04879126,4519.0,4518.9,0.3206]
[1759968626150,0.39822,4518.8,4518.7,0.3206]
[1759968626356,0.92596382,4518.8,4518.7,0.71882]
[1759968626558,3.82221537,4518.8,4518.7,0.71882]
[1759968629048,3.42399537,4518.8,4518.7,0.93352]
[1759968629256,3.42399537,4518.8,4518.7,1.13862]
[1759968646271,2.89625155,4518.8,4518.7,6.13862]
[1759968646667,3.2078,4519.2,4519.1,1.14498]
[1759968646872,3.73060633,4519.2,4519.1,1.14498]
[1759968647073,6.55644353,4519.2,4519.1,1.14498]
[1759968647573,3.34864353,4519.2,4519.1,1.14498]
[1759968647875,3.2078,4519.7,4519.6,1.14494]
[1759968648075,3.73054421,4519.7,4519.6,1.36694]
[1759968648376,6.14890647,4519.7,4519.6,1.36694]
[1759968648877,2.94110647,4519.7,4519.6,1.36694]
[1759968649274,0.222,4520.3,4520.2,1.14489]
[1759968649483,3.2078,4520.5,4520.4,1.14487]
[1759968649775,6.6565702,4520.5,4520.4,1.14487]
[1759968654279,6.13455487,4520.5,4520.4,1.14487]
[1759968654972,6.53261487,4520.5,4520.4,0.7468]
[1759968656369,6.53261487,4520.5,4520.4,0.5352]
[1759968656569,6.53261487,4520.5,4520.0,0.1315]
[1759968656570,0.3981,4520.1,4520.0,0.1315]
[1759968657074,3.29786837,4520.1,4520.0,0.453]
[1759968657970,3.29786837,4520.1,4520.0,0.6667]
[1759968660481,0.39814,4519.7,4519.6,0.3215]
[1759968660967,3.23473069,4519.7,4519.6,0.3215]
[1759968661373,3.23473069,4519.7,4519.6,0.5352]
[1759968661979,0.39818,4519.1,4519.0,0.3452]
[1759968662276,2.8591816,4519.1,4519.0,0.3452]
[1759968662476,3.2573616,4519.1,4519.0,0.8783]
[1759968662682,0.39818,4519.2,4519.0,0.95499]
[1759968662875,3.2573616,4519.2,4519.1,0.7468]
[1759968663076,0.39818,4519.2,4519.1,0.5352]
[1759968663575,3.30456836,4519.2,4519.1,0.3215]
[1759968666084,2.90638836,4519.2,4518.8,0.3215]
[1759968666383,0.39821,4518.9,4518.7,0.71972]
[1759968666573,0.3982,4519.0,4518.7,0.71972]
[1759968666775,3.27294004,4518.8,4518.7,0.3215]
[1759968666972,0.39821,4518.8,4518.7,0.3215]
[1759968667278,6.44791898,4518.8,4518.7,0.3215]
[1759968668681,0.39826,4518.2,4518.1,0.3164993]
[1759968668983,3.26753949,4518.2,4518.1,0.9291693]
[1759968669178,3.26753949,4518.2,4518.1,0.5308993]
[1759968669377,3.26753949,4518.2,4518.1,0.7507993]
[1759968669980,2.86927949,4518.2,4518.1,0.3164993]
[1759968671386,0.39831,4517.7,4517.6,0.3143]
[1759968671685,6.44318293,4517.7,4517.6,0.3143]
[1759968672285,6.44506039,4517.7,4517.6,0.31591061]
[1759968672680,6.44506039,4517.7,4517.6,0.00161061]
[1759968674685,6.44506039,4517.7,4517.6,0.31591061]
[1759968675486,6.66706039,4517.7,4517.6,0.31591061]
[1759968675888,6.04675039,4517.7,4517.6,0.53031061]
[1759968676082,6.04675039,4517.7,4517.6,0.75021061]
[1759968676083,6.26875039,4517.7,4517.6,0.75021061]
[1759968677888,6.66706039,4517.7,4517.6,0.75021061]
[1759968678088,6.44506039,4517.7,4517.6,1.14853061]
[1759968678590,6.04675039,4517.7,4517.6,1.14853061]
[1759968679788,6.04675039,4517.7,4517.6,6.14853061]
[1759968683792,2.83895039,4517.7,4517.6,9.35633061]
[1759968684095,3.2078,4518.2,4518.1,1.14687]
[1759968684288,3.2078,4518.2,4518.1,1.36887]
[1759968684489,6.13551965,4518.2,4518.1,1.36887]
[1759968685088,6.13728327,4518.2,4518.1,1.36887]
[1759968688604,6.13728327,4518.2,4518.1,1.14687]
[1759968688807,6.13728327,4518.2,4517.8,0.7126]
[1759968689104,0.39829,4517.9,4517.8,0.7126]
[1759968689305,0.39829,4517.9,4517.8,0.3143]
[1759968689505,3.32702757,4517.9,4517.8,0.3143]
[1759968691305,3.32702757,4517.9,4517.8,0.7126]
[1759968692304,3.32702757,4517.9,4517.8,0.3143]
[1759968693208,3.32702757,4517.9,4517.8,0.7126]
[1759968693706,2.92873757,4517.9,4517.8,0.927]
[1759968693906,2.92873757,4517.9,4517.8,1.1469]
[1759968694207,3.20956362,4518.2,4518.1,1.14687]
[1759968694604,6.12517153,4518.2,4518.1,1.14687]
[1759968697209,6.12517153,4518.2,4518.1,1.36887]
[1759968698706,0.00176362,4518.2,4518.1,6.36887]
[1759968698909,3.2078,4518.8,4518.7,1.14442]
[1759968699213,0.222,4519.6,4519.2,0.7462]
[1759968699214,3.2078,4519.3,4519.2,0.7462]
[1759968699711,6.05272766,4519.3,4519.2,1.14438]
[1759968700007,6.05507006,4519.3,4519.2,1.14438]
[1759968700213,6.05507006,4519.3,4519.2,1.36638]
[1759968701506,2.84727006,4519.3,4519.2,1.36638]
[1759968703310,2.84727006,4519.3,4519.2,1.14438]
[1759968703505,6.05507006,4519.3,4519.2,0.3075]
[1759968703710,6.05507006,4519.3,4519.2,0.5169]
[1759968704614,6.05507006,4519.3,4518.9,0.3122]
[1759968704801,0.39819,4519.1,4518.9,0.3122]
[1759968705012,6.05507006,4519.3,4518.9,0.3122]
[1759968705208,3.22225907,4519.0,4518.9,0.3122]
[1759968705409,0.39819,4519.0,4518.9,0.3122]
[1759968705707,3.2515749,4519.0,4518.9,0.3122]
[1759968707513,0.39823,4518.6,4518.5,0.3451]
[1759968707806,0.39823,4518.6,4518.5,0.5545]
[1759968708011,3.26494755,4518.6,4518.5,1.0892]
[1759968708212,2.86671755,4518.6,4518.5,1.0892]
[1759968708606,2.90558275,4518.7,4518.6,0.39823]
[1759968708912,2.90558275,4518.7,4518.1,0.4319]
[1759968708913,0.39827,4518.2,4518.1,0.4319]
[1759968709108,0.39827,4518.2,4518.1,0.7441]
[1759968709311,2.90558275,4518.2,4518.1,1.14237]
[1759968709610,0.39826,4518.3,4518.1,0.4319]
[1759968709810,0.39826,4518.3,4518.2,0.3122]
[1759968710009,0.39826,4518.3,4518.2,0.7441]
[1759968710207,3.21922439,4518.3,4518.2,0.7441]
[1759968714317,3.21922439,4518.3,4518.2,1.14236]
[1759968715018,2.82096439,4518.3,4518.2,1.14236]
[1759968715413,0.39823,4518.6,4518.5,0.39824]
[1759968715609,0.39823,4518.6,4518.5,1.05584]
[1759968715815,3.22974467,4518.6,4518.5,1.05584]
[1759968716017,2.83151467,4518.6,4518.5,1.27834]
[1759968716425,3.22973467,4518.7,4518.6,0.91983]
[1759968716614,0.39822,4518.7,4518.6,0.91983]
[1759968716919,3.30047247,4518.7,4518.6,0.91983]
[1759968718924,3.30047247,4518.7,4518.6,1.14233]
[1759968719821,3.30047247,4518.7,4518.6,0.3122]
[1759968720023,3.81931859,4518.7,4518.6,0.3122]
[1759968720219,4.41665859,4518.7,4518.2,0.3122]
[1759968720521,4.41090372,4518.3,4518.2,0.71046]
[1759968720820,7.29974611,4518.3,4518.2,0.71046]
[1759968721514,7.29974611,4518.3,4518.2,0.91986]
[1759968722522,6.90148611,4518.3,4518.2,0.91986]
[1759968723421,6.09664239,4518.3,4518.2,0.91986]
[1759968727425,6.09664239,4518.3,4518.2,1.14236]
[1759968727920,2.88884239,4518.3,4518.2,6.94720372]
[1759968728126,3.2078,4518.8,4518.7,1.14232]
[1759968728427,6.08988358,4518.8,4518.7,2.16916372]
[1759968729828,2.88208358,4518.8,4518.7,2.16916372]
[1759968730123,3.2101424,4519.3,4519.2,0.39818]
[1759968730328,3.72946623,4519.3,4519.2,1.13558]
[1759968730528,6.66960725,4519.3,4519.2,1.13558]
[1759968734531,6.15028342,4519.3,4519.2,1.13558]
[1759968735832,6.66978488,4519.3,4519.2,1.13558]
[1759968736032,6.66978337,4519.3,4519.2,1.13558]
[1759968737538,6.15028342,4519.3,4519.2,1.13558]
[1759968737737,6.66970501,4519.3,4519.2,1.13558]
[1759968737938,6.15028342,4519.3,4519.2,1.13558]
[1759968738138,6.66969922,4519.3,4519.2,1.13558]
[1759968738340,6.66969922,4519.3,4519.2,0.92568]
[1759968738932,6.66969922,4519.3,4519.2,1.13558]
[1759968743241,6.15028342,4519.3,4519.2,1.13558]
[1759968744142,6.66952261,4519.3,4519.2,1.13558]
[1759968744842,3.85989261,4519.3,4519.2,0.7374]
[1759968746539,3.34065342,4519.3,4519.2,0.7374]
[1759968747445,3.85989893,4519.3,4519.2,0.7374]
[1759968748747,3.34065342,4519.3,4519.2,0.7374]
[1759968749147,3.85981705,4519.3,4519.2,0.7374]
[1759968749447,3.34065342,4519.3,4519.2,0.7374]
[1759968749843,3.34065342,4519.3,4519.2,1.13558]
[1759968750350,3.85983132,4519.3,4519.2,0.7374]
[1759968750949,3.85983132,4519.3,4519.2,1.13558]
[1759968752351,3.46166132,4519.3,4519.2,1.13558]
[1759968752550,2.94248342,4519.3,4519.2,1.13558]
[1759968757855,3.34065342,4519.3,4519.2,1.13558]
[1759968758048,3.8596866,4519.3,4519.2,0.7495]
[1759968758458,3.8596866,4519.3,4519.2,1.14768]
[1759968758658,3.8596866,4519.3,4519.2,1.35758]
[1759968758955,3.8596866,4519.3,4519.2,0.9594]
[1759968761453,3.8596866,4519.3,4519.2,1.35758]
[1759968762055,3.8596866,4519.3,4519.2,1.13558]
[1759968762257,3.8596866,4519.3,4519.2,1.35758]
[1759968763760,7.0674866,4519.3,4519.2,1.35758]
[1759968764060,7.0674866,4519.3,4519.2,1.13558]
[1759968764357,7.0674866,4519.3,4519.2,1.35758]
[1759968766459,3.8596866,4519.3,4519.2,1.35758]
[1759968766758,7.0674866,4519.3,4519.2,1.35758]
[1759968767964,7.0674866,4519.3,4519.2,0.9594]
[1759968768865,7.0674866,4519.3,4519.2,1.35758]
[1759968769562,7.0674866,4519.3,4519.2,0.9594]
[1759968770755,7.0674866,4519.3,4519.2,1.35758]
[1759968773262,7.0674866,4519.3,4519.2,0.9594]
[1759968773957,7.05610247,4519.3,4519.2,0.9594]
[1759968774757,7.05610247,4519.3,4519.2,1.35758]
[1759968774958,7.05822774,4519.3,4519.2,1.35758]
[1759968784468,7.05822774,4519.3,4519.2,0.9594]
[1759968784962,0.39818,4519.1,4519.0,0.3205]
[1759968785165,0.39827,4518.1,4518.0,0.3403]
[1759968785368,0.39827,4518.1,4518.0,0.1318]
[1759968785667,3.31210364,4518.1,4518.0,0.4523]
[1759968786965,6.51990364,4518.1,4518.0,0.4523]
[1759968787169,7.03427849,4518.1,4518.0,0.4523]
[1759968787364,7.03427849,4518.1,4518.0,0.3205]
[1759968787564,0.39831,4517.7,4517.6,0.32211061]
[1759968787966,3.23971066,4517.7,4517.6,0.32211061]
[1759968788574,3.23971066,4517.7,4517.6,0.53061061]
[1759968791774,3.23971066,4517.7,4517.6,1.14973061]
[1759968792670,2.84140066,4517.7,4517.6,1.37173061]
[1759968792865,2.84140066,4517.7,4517.6,6.37173061]
[1759968793070,0.99547,4519.1,4518.2,0.7597]
[1759968793071,0.39826,4518.3,4518.2,0.7597]
[1759968793266,0.39824,4518.5,4518.4,1.15795]
[1759968793774,3.21928223,4518.5,4518.4,1.15795]
[1759968796580,2.82104223,4518.5,4518.4,1.15795]
[1759968797282,2.82104223,4518.5,4518.4,2.08879999]
[1759968797485,0.39819,4519.0,4518.9,1.15789]
[1759968797780,3.28019297,4519.0,4518.9,1.15789]
[1759968799074,2.88200297,4519.0,4518.9,1.15789]
[1759968804687,3.28019297,4519.0,4518.9,0.3296]
[1759968804882,3.28019297,4519.0,4518.9,0.5516]
[1759968805788,3.28019297,4519.0,4518.9,0.7609]
[1759968806188,3.28019297,4519.0,4518.9,0.5389]
[1759968806397,3.28019297,4519.0,4518.9,0.7609]
[1759968807082,3.28019297,4519.0,4518.9,1.3799]
[1759968808790,3.28019297,4519.0,4518.9,0.3296]
[1759968808992,3.28019297,4519.0,4518.9,0.5516]
[1759968810485,2.88200297,4519.0,4518.9,1.3799]
[1759968811792,3.28019297,4519.0,4518.9,1.3799]
[1759968813586,2.88200297,4519.0,4518.9,1.3799]
[1759968815091,2.88200297,4519.0,4518.9,1.1579]
[1759968815297,2.88200297,4519.0,4518.9,1.3799]
[1759968815700,3.28019297,4519.0,4518.9,1.3799]
[1759968817496,2.88200297,4519.0,4518.9,1.3799]
[1759968822303,3.39689104,4519.0,4518.9,1.3799]
[1759968822901,3.79508104,4519.0,4518.9,1.3799]
[1759968824402,3.39689104,4519.0,4518.9,1.3799]
[1759968824897,3.79508104,4519.0,4518.9,1.3799]
[1759968825103,3.79508104,4519.0,4518.9,0.5506]
[1759968826204,3.79508104,4519.0,4518.9,0.9488]
[1759968826610,3.79508104,4519.0,4518.9,1.1676]
[1759968827306,3.79508104,4519.0,4518.9,1.3935]
[1759968829502,3.79508104,4519.0,4518.9,0.9488]
[1759968829694,3.79508104,4519.0,4518.9,0.5506]
[1759968830405,3.79508104,4519.0,4518.9,0.7694]
[1759968832114,3.79508104,4519.0,4518.9,0.5506]
[1759968833010,3.79508104,4519.0,4518.9,0.7694]
[1759968833511,3.79508104,4519.0,4518.9,0.5484]
[1759968833705,3.79508104,4519.0,4518.9,0.5506]
[1759968835613,3.79508104,4519.0,4518.9,0.7694]
[1759968837210,0.39823,4518.6,4518.5,0.1294]
[1759968837516,0.39826,4518.2,4518.1,0.61707]
[1759968837718,0.39826,4518.2,4518.1,1.06397]
[1759968838014,3.31061335,4518.2,4518.1,1.38567]
[1759968842117,3.31061335,4518.2,4518.1,1.16467]
[1759968842417,3.31061335,4518.2,4518.1,0.7664]
[1759968842715,3.31061335,4518.2,4518.1,0.9874]
[1759968843913,3.31061335,4518.2,4518.1,0.7615]
[1759968844315,3.31061335,4518.2,4518.1,0.5405]
[1759968844815,3.31061335,4518.2,4518.1,0.7615]
[1759968845017,3.31061335,4518.2,4518.1,0.9874]
[1759968845215,3.31061335,4518.2,4518.1,0.7664]
[1759968845520,3.31061335,4518.2,4518.1,0.9874]
[1759968846420,3.31061335,4518.2,4518.1,0.7664]
[1759968846620,3.31061335,4518.2,4518.1,0.9874]
[1759968848118,3.31061335,4518.2,4518.1,0.3217]
[1759968848420,3.31061335,4518.2,4518.1,0.5427]
[1759968849325,0.39831,4517.7,4517.6,0.33531061]
[1759968849515,0.39831,4517.7,4517.6,0.55631061]
[1759968849709,3.27992985,4517.7,4517.6,0.55631061]
[1759968849917,4.08456941,4517.7,4517.6,0.00161061]
[1759968850122,4.59928252,4517.7,4517.6,0.00161061]
[1759968856126,4.08456941,4517.7,4517.6,0.00161061]
[1759968857323,4.08456941,4517.7,4517.6,0.33531061]
[1759968857522,2.88161985,4517.7,4517.6,0.94003061]
[1759968857827,3.27992985,4517.7,4517.6,0.94003061]
[1759968859118,2.88161985,4517.7,4517.6,1.15033061]
[1759968859824,2.88161985,4517.7,4517.6,1.37233061]
[1759968860626,2.88161985,4517.7,4517.6,1.15033061]
[1759968860827,2.88161985,4517.7,4517.6,7.98160973]
[1759968861030,3.2078,4518.3,4518.2,1.14866]
[1759968861327,3.60599,4519.1,4519.0,1.06269]
[1759968861528,4.11979595,4519.1,4519.0,1.06269]
[1759968861830,6.93220356,4519.1,4519.0,1.06269]
[1759968862728,6.53401356,4519.1,4519.0,1.27299]
[1759968864425,6.53401356,4519.1,4519.0,0.8748]
[1759968864938,6.53401356,4519.1,4519.0,0.6645]
[1759968865930,6.53401356,4519.1,4519.0,0.4581]
[1759968867632,7.73683312,4519.1,4519.0,0.4581]
[1759968868435,7.73683312,4519.1,4519.0,0.85629]
[1759968868636,6.53401356,4519.1,4519.0,1.06269]
[1759968869031,6.93219356,4519.1,4519.0,1.06269]
[1759968869933,6.93219356,4519.1,4519.0,0.6645]
[1759968870539,6.93219356,4519.1,4519.0,0.8748]
[1759968873842,6.41838761,4519.1,4519.0,0.8748]
[1759968874139,6.41838761,4519.1,4519.0,0.6645]
[1759968877744,6.41838761,4519.1,4519.0,0.4581]
[1759968877944,6.41838761,4519.1,4519.0,0.3337]
[1759968878340,0.39821,4518.8,4518.7,0.3337]
[1759968878540,0.39821,4518.8,4518.7,0.5401]
[1759968878747,3.30941765,4518.8,4518.7,0.93832]
[1759968879059,3.30941765,4518.8,4518.7,0.5401]
[1759968879758,3.30941765,4518.8,4518.7,0.93832]
[1759968883557,2.91120765,4518.8,4518.7,1.15122]
[1759968883944,2.86309768,4519.0,4518.9,1.1301]
[1759968884147,3.2078,4519.1,4519.0,0.84149]
[1759968884454,6.05258999,4519.1,4519.0,1.26289]
[1759968885356,2.84478999,4519.1,4519.0,1.26289]
[1759968885757,0.40029527,4519.3,4519.2,0.81958]
[1759968885949,0.91338503,4519.3,4519.2,0.7319]
[1759968886148,3.74472626,4519.3,4519.2,0.7319]
[1759968888257,3.74472626,4519.3,4519.2,1.13008]
[1759968888558,3.74472626,4519.3,4519.2,0.7319]
[1759968891759,3.34655626,4519.3,4519.2,1.35108]
[1759968893463,2.8334665,4519.3,4519.2,1.35108]
[1759968894166,2.8334665,4519.3,4519.2,6.35108]
[1759968894561,0.00212527,4519.3,4519.2,6.35108]
[1759968901068,0.00212527,4519.3,4519.2,1.13008]
[1759968901267,3.28859192,4519.3,4519.2,1.13008]
[1759968901468,3.28859192,4519.3,4519.2,1.35108]
[1759968901770,0.00212527,4519.3,4519.2,1.35108]
[1759968902363,3.2078,4520.0,4519.9,1.13001]
[1759968902570,3.2078,4520.0,4519.9,1.35101]
[1759968902767,6.10688027,4520.0,4519.9,1.35101]
[1759968903472,6.10893053,4520.0,4519.9,1.35101]
[1759968903762,6.10893053,4520.0,4519.9,0.9529]
[1759968904568,6.10893053,4520.0,4519.9,0.3105]
[1759968904768,6.10893053,4520.0,4519.9,0.5315]
[1759968904974,6.10893053,4520.0,4519.9,0.7391]
[1759968905967,6.10893053,4520.0,4519.5,0.1328]
[1759968905968,0.39812,4519.9,4519.6,0.221]
[1759968906171,6.50704053,4520.0,4519.9,0.4214]
[1759968906475,3.20985026,4520.0,4519.9,1.66316948]
[1759968906675,6.07044511,4520.0,4519.9,1.66316948]
[1759968907173,6.07044511,4520.0,4519.9,0.7319]
[1759968907474,6.07044511,4520.0,4519.9,0.5315]
[1759968908667,6.07044511,4520.0,4519.9,0.3105]
[1759968909673,0.39814,4519.6,4519.5,0.1328]
[1759968909980,3.25951531,4519.6,4519.5,0.1328]
[1759968910478,3.25951531,4519.6,4519.5,0.3401]
[1759968910880,3.25951531,4519.6,4519.5,0.4638]
[1759968911975,2.86137531,4519.6,4519.5,1.29565]
[1759968912173,2.86137531,4519.6,4519.5,1.51665]
[1759968912375,0.39812,4519.8,4519.7,0.4337]
[1759968912579,3.26432065,4519.8,4519.7,0.7738]
[1759968912874,0.39812,4519.8,4519.7,0.5602]
[1759968913079,3.33633036,4519.8,4519.7,0.5602]
[1759968913280,3.33633036,4519.8,4519.7,0.7738]
[1759968914179,3.33633036,4519.8,4519.7,1.17193]
[1759968914775,2.93821036,4519.8,4519.7,1.17193]
[1759968915176,3.20985026,4520.0,4519.9,0.39811]
[1759968915385,3.20985026,4520.0,4519.9,1.17191]
[1759968915582,6.12869525,4520.0,4519.9,1.17191]
[1759968916480,2.92089525,4520.0,4519.9,1.17191]